[Event "Titled Tuesday Blitz June 14 Late 2022"]
[White "Djabri,Massinas"]
[Black "Bayo Milagro, Alvaro"]
[WhiteFideId "7905726"]
[BlackFideId "22275240"]
[WhiteElo "1941"]
[BlackElo "2270"]
[Result "0-1"]
[Round "11"]
[TimeControl "180+1"]
[Date "2022.06.14"]
[WhiteClock "0:00:47"]
[BlackClock "0:00:57"]

1. d4 {[%clk 0:03:00]}  Nf6 {[%clk 0:02:58]} 2. c4 {[%clk 0:03:01]}  g6 {[%clk 0:02:58]} 3. f3 {[%clk 0:03:01]}  Bg7 {[%clk 0:02:57]} 4. e4 {[%clk 0:03:02]}  d6 {[%clk 0:02:58]} 5. Nc3 {[%clk 0:03:02]}  O-O {[%clk 0:02:58]} 6. Nge2 {[%clk 0:03:03]}  Nc6 {[%clk 0:02:59]} 7. d5 {[%clk 0:03:01]}  Na5 {[%clk 0:02:58]} 8. Ng3 {[%clk 0:02:59]}  c5 {[%clk 0:02:58]} 9. Be2 {[%clk 0:02:56]}  a6 {[%clk 0:02:58]} 10. a4 {[%clk 0:02:55]}  Rb8 {[%clk 0:02:57]} 11. O-O {[%clk 0:02:54]}  Bd7 {[%clk 0:02:52]} 12. h3 {[%clk 0:02:45]}  e6 {[%clk 0:02:51]} 13. f4 {[%clk 0:02:44]}  exd5 {[%clk 0:02:51]} 14. cxd5 {[%clk 0:02:44]}  Re8 {[%clk 0:02:47]} 15. e5 {[%clk 0:02:41]}  dxe5 {[%clk 0:02:47]} 16. fxe5 {[%clk 0:02:39]}  Rxe5 {[%clk 0:02:45]} 17. Bf4 {[%clk 0:02:39]}  Qe8 {[%clk 0:02:37]} 18. Bxe5 {[%clk 0:02:29]}  Qxe5 {[%clk 0:02:38]} 19. Bf3 {[%clk 0:02:25]}  Qxg3 {[%clk 0:02:36]} 20. d6 {[%clk 0:02:18]}  Nc6 {[%clk 0:02:27]} 21. Nd5 {[%clk 0:02:14]}  Qxd6 {[%clk 0:02:20]} 22. Nxf6+ {[%clk 0:02:12]}  Qxf6 {[%clk 0:02:19]} 23. Bd5 {[%clk 0:02:12]}  Qd4+ {[%clk 0:02:17]} 24. Kh1 {[%clk 0:02:12]}  Ne5 {[%clk 0:02:15]} 25. Qb3 {[%clk 0:01:57]}  c4 {[%clk 0:02:13]} 26. Rad1 {[%clk 0:01:57]}  cxb3 {[%clk 0:02:12]} 27. Rxd4 {[%clk 0:01:58]}  Be6 {[%clk 0:01:48]} 28. Bxe6 {[%clk 0:01:53]}  fxe6 {[%clk 0:01:49]} 29. Rb4 {[%clk 0:01:51]}  Nd3 {[%clk 0:01:47]} 30. Rxb3 {[%clk 0:01:50]}  Nxb2 {[%clk 0:01:47]} 31. Rb4 {[%clk 0:01:33]}  b5 {[%clk 0:01:40]} 32. axb5 {[%clk 0:01:24]}  axb5 {[%clk 0:01:39]} 33. Rb1 {[%clk 0:01:23]}  Bc3 {[%clk 0:01:35]} 34. R4xb2 {[%clk 0:01:18]}  Bxb2 {[%clk 0:01:35]} 35. Rxb2 {[%clk 0:01:19]}  b4 {[%clk 0:01:35]} 36. Kg1 {[%clk 0:01:20]}  b3 {[%clk 0:01:35]} 37. Kf2 {[%clk 0:01:21]}  Kg7 {[%clk 0:01:35]} 38. Ke3 {[%clk 0:01:21]}  Kf6 {[%clk 0:01:35]} 39. Kd4 {[%clk 0:01:21]}  Kf5 {[%clk 0:01:32]} 40. g3 {[%clk 0:01:11]}  e5+ {[%clk 0:01:08]} 41. Ke3 {[%clk 0:00:57]}  Rb4 {[%clk 0:01:04]} 42. Rf2+ {[%clk 0:00:55]}  Ke6 {[%clk 0:01:04]} 43. Rb2 {[%clk 0:00:56]}  Kd5 {[%clk 0:01:00]} 44. Kd3 {[%clk 0:00:51]}  e4+ {[%clk 0:01:00]} 45. Kc3 {[%clk 0:00:47]}  Rb7 {[%clk 0:00:56]} 46. Rd2+ {[%clk 0:00:47]}  Ke5 {[%clk 0:00:57]} 47. Kb2 {[%clk 0:00:48]}  e3 {[%clk 0:00:57]} 48. Rd8 {[%clk 0:00:47]}  Ke4 {[%clk 0:00:57]} 0-1


[Site "https://www.chess.com"]

[Event "Titled Tuesday Blitz June 14 Late 2022"]
[White "Goncalves, Davi Sulzbacher"]
[Black "Hnydiuk, Aleksander"]
[WhiteFideId "2154510"]
[BlackFideId "1109057"]
[WhiteElo "2107"]
[BlackElo "2374"]
[Result "0-1"]
[Round "11"]
[TimeControl "180+1"]
[Date "2022.06.14"]
[WhiteClock "0:00:29"]
[BlackClock "0:02:02"]

1. d4 {[%clk 0:03:00]}  Nf6 {[%clk 0:02:59]} 2. c4 {[%clk 0:03:01]}  g6 {[%clk 0:03:00]} 3. Nf3 {[%clk 0:03:01]}  Bg7 {[%clk 0:03:01]} 4. Nc3 {[%clk 0:03:02]}  d5 {[%clk 0:03:01]} 5. cxd5 {[%clk 0:03:02]}  Nxd5 {[%clk 0:03:01]} 6. e4 {[%clk 0:03:03]}  Nxc3 {[%clk 0:03:02]} 7. bxc3 {[%clk 0:03:04]}  c5 {[%clk 0:03:02]} 8. Rb1 {[%clk 0:03:04]}  O-O {[%clk 0:03:01]} 9. Be2 {[%clk 0:03:03]}  b6 {[%clk 0:02:55]} 10. O-O {[%clk 0:03:01]}  Bb7 {[%clk 0:02:55]} 11. d5 {[%clk 0:02:58]}  Bxc3 {[%clk 0:02:55]} 12. Bh6 {[%clk 0:02:53]}  Bg7 {[%clk 0:02:54]} 13. Bxg7 {[%clk 0:02:52]}  Kxg7 {[%clk 0:02:55]} 14. Rb3 {[%clk 0:02:46]}  e6 {[%clk 0:02:55]} 15. Qa1+ {[%clk 0:02:37]}  Qf6 {[%clk 0:02:48]} 16. e5 {[%clk 0:02:34]}  Qf4 {[%clk 0:02:48]} 17. g3 {[%clk 0:02:17]}  Qf5 {[%clk 0:02:48]} 18. d6 {[%clk 0:02:03]}  Nd7 {[%clk 0:02:44]} 19. Re3 {[%clk 0:02:03]}  g5 {[%clk 0:02:35]} 20. Bd3 {[%clk 0:01:46]}  Qg4 {[%clk 0:02:34]} 21. Ne1 {[%clk 0:01:39]}  Qd4 {[%clk 0:02:32]} 22. Qxd4 {[%clk 0:01:23]}  cxd4 {[%clk 0:02:33]} 23. Re2 {[%clk 0:01:24]}  Rac8 {[%clk 0:02:27]} 24. f4 {[%clk 0:01:24]}  gxf4 {[%clk 0:02:26]} 25. gxf4 {[%clk 0:01:22]}  Kh8 {[%clk 0:02:25]} 26. Kf2 {[%clk 0:01:16]}  Nc5 {[%clk 0:02:22]} 27. Rg1 {[%clk 0:01:11]}  Rg8 {[%clk 0:02:22]} 28. Rg3 {[%clk 0:01:11]}  Rxg3 {[%clk 0:02:18]} 29. hxg3 {[%clk 0:01:11]}  Kg7 {[%clk 0:02:16]} 30. g4 {[%clk 0:01:06]}  f6 {[%clk 0:02:15]} 31. exf6+ {[%clk 0:01:00]}  Kxf6 {[%clk 0:02:16]} 32. Bxh7 {[%clk 0:01:00]}  Rd8 {[%clk 0:02:15]} 33. g5+ {[%clk 0:00:52]}  Kg7 {[%clk 0:02:14]} 34. Bc2 {[%clk 0:00:28]}  Rxd6 {[%clk 0:02:14]} 35. Nd3 {[%clk 0:00:28]}  Ba6 {[%clk 0:02:13]} 36. f5 {[%clk 0:00:21]}  Nxd3+ {[%clk 0:02:11]} 37. Bxd3 {[%clk 0:00:21]}  Bxd3 {[%clk 0:02:12]} 38. Rd2 {[%clk 0:00:17]}  Bxf5 {[%clk 0:02:11]} 39. Kf3 {[%clk 0:00:18]}  e5 {[%clk 0:02:11]} 40. Rb2 {[%clk 0:00:17]}  e4+ {[%clk 0:02:10]} 41. Kf4 {[%clk 0:00:17]}  Kg6 {[%clk 0:02:10]} 42. Ke5 {[%clk 0:00:17]}  Rd7 {[%clk 0:02:06]} 43. Rf2 {[%clk 0:00:18]}  d3 {[%clk 0:02:03]} 44. Rxf5 {[%clk 0:00:18]}  Rd5+ {[%clk 0:02:00]} 45. Kxd5 {[%clk 0:00:17]}  Kxf5 {[%clk 0:02:01]} 46. g6 {[%clk 0:00:17]}  Kxg6 {[%clk 0:02:01]} 47. Kxe4 {[%clk 0:00:17]}  d2 {[%clk 0:02:01]} 48. Kd3 {[%clk 0:00:18]}  d1=Q+ {[%clk 0:02:02]} 49. Kc3 {[%clk 0:00:19]}  Qa1+ {[%clk 0:02:01]} 50. Kb3 {[%clk 0:00:19]}  Kf5 {[%clk 0:02:01]} 51. a3 {[%clk 0:00:19]}  Ke4 {[%clk 0:02:01]} 52. Kb4 {[%clk 0:00:19]}  Kd4 {[%clk 0:02:01]} 53. a4 {[%clk 0:00:19]}  Qc3+ {[%clk 0:02:01]} 54. Kb5 {[%clk 0:00:19]}  Qa5+ {[%clk 0:02:01]} 55. Kc6 {[%clk 0:00:19]}  Qxa4+ {[%clk 0:02:01]} 56. Kb7 {[%clk 0:00:20]}  b5 {[%clk 0:02:01]} 57. Kc6 {[%clk 0:00:21]}  b4+ {[%clk 0:02:02]} 58. Kd6 {[%clk 0:00:21]}  b3 {[%clk 0:02:02]} 59. Ke6 {[%clk 0:00:22]}  Qc6+ {[%clk 0:02:00]} 60. Kf5 {[%clk 0:00:23]}  Qe4+ {[%clk 0:01:59]} 61. Kg5 {[%clk 0:00:23]}  b2 {[%clk 0:01:59]} 62. Kf6 {[%clk 0:00:24]}  a5 {[%clk 0:01:59]} 63. Kf7 {[%clk 0:00:25]}  a4 {[%clk 0:02:00]} 64. Kf6 {[%clk 0:00:25]}  a3 {[%clk 0:02:01]} 65. Kg5 {[%clk 0:00:26]}  a2 {[%clk 0:02:02]} 66. Kf6 {[%clk 0:00:27]}  a1=Q {[%clk 0:02:02]} 67. Kg7 {[%clk 0:00:28]}  b1=Q {[%clk 0:02:02]} 68. Kf7 {[%clk 0:00:29]}  Qa7+ {[%clk 0:02:02]} 69. Kg8 {[%clk 0:00:29]}  Qbb8# {[%clk 0:02:02]} 0-1


[Site "https://www.chess.com"]

[Event "Titled Tuesday Blitz June 14 Late 2022"]
[White "Hjartarson, Johann"]
[Black "Bringas Gomez, Artai"]
[WhiteFideId "2300044"]
[BlackFideId "24534064"]
[WhiteElo "2458"]
[BlackElo "1988"]
[Result "*"]
[Round "11"]
[TimeControl "180+1"]
[Date "2022.06.14"]
[WhiteClock "0:01:19"]
[BlackClock "0:01:57"]

1. e4 {[%clk 0:03:00]}  c6 {[%clk 0:02:59]} 2. d4 {[%clk 0:03:00]}  d5 {[%clk 0:03:00]} 3. exd5 {[%clk 0:02:59]}  cxd5 {[%clk 0:03:01]} 4. Bd3 {[%clk 0:02:58]}  Nc6 {[%clk 0:03:01]} 5. c3 {[%clk 0:02:58]}  Qc7 {[%clk 0:03:02]} 6. Nf3 {[%clk 0:02:54]}  Bg4 {[%clk 0:03:02]} 7. h3 {[%clk 0:02:54]}  Bh5 {[%clk 0:03:01]} 8. O-O {[%clk 0:02:53]}  e6 {[%clk 0:03:01]} 9. Nbd2 {[%clk 0:02:51]}  Bd6 {[%clk 0:03:01]} 10. Re1 {[%clk 0:02:50]}  Nge7 {[%clk 0:03:01]} 11. a4 {[%clk 0:02:40]}  O-O {[%clk 0:02:55]} 12. b4 {[%clk 0:02:38]}  Rae8 {[%clk 0:02:46]} 13. a5 {[%clk 0:02:35]}  a6 {[%clk 0:02:38]} 14. Nb3 {[%clk 0:02:23]}  e5 {[%clk 0:02:38]} 15. Bxh7+ {[%clk 0:02:16]}  Kh8 {[%clk 0:02:37]} 16. g4 {[%clk 0:02:11]}  Bg6 {[%clk 0:02:32]} 17. Bxg6 {[%clk 0:01:58]}  Nxg6 {[%clk 0:02:33]} 18. Be3 {[%clk 0:01:49]}  e4 {[%clk 0:02:33]} 19. Nfd2 {[%clk 0:01:45]}  f5 {[%clk 0:02:25]} 20. gxf5 {[%clk 0:01:44]}  Rxf5 {[%clk 0:02:24]} 21. Qg4 {[%clk 0:01:41]}  Qf7 {[%clk 0:02:24]} 22. Kh1 {[%clk 0:01:36]}  Nf4 {[%clk 0:02:20]} 23. Rg1 {[%clk 0:01:23]}  Nd8 {[%clk 0:02:04]} 24. Nc5 {[%clk 0:01:19]}  Nxh3 {[%clk 0:01:57]} *


[Site "https://www.chess.com"]

[Event "Titled Tuesday Blitz June 14 Late 2022"]
[White "Isajevsky, Anton"]
[Black "Kosteniuk, Alexandra"]
[WhiteFideId "4142500"]
[BlackFideId "4128125"]
[WhiteElo "2510"]
[BlackElo "2469"]
[Result "0-1"]
[Round "11"]
[TimeControl "180+1"]
[Date "2022.06.14"]
[WhiteClock "0:00:24"]
[BlackClock "0:01:30"]

1. c4 {[%clk 0:02:42]}  e5 {[%clk 0:02:59]} 2. g3 {[%clk 0:02:41]}  Nf6 {[%clk 0:02:59]} 3. Bg2 {[%clk 0:02:41]}  d5 {[%clk 0:02:59]} 4. cxd5 {[%clk 0:02:41]}  Nxd5 {[%clk 0:03:00]} 5. Nf3 {[%clk 0:02:42]}  Nc6 {[%clk 0:03:00]} 6. O-O {[%clk 0:02:42]}  Nb6 {[%clk 0:03:00]} 7. b3 {[%clk 0:02:40]}  Be7 {[%clk 0:03:00]} 8. Bb2 {[%clk 0:02:40]}  f6 {[%clk 0:03:01]} 9. d3 {[%clk 0:02:37]}  O-O {[%clk 0:03:00]} 10. Nbd2 {[%clk 0:02:36]}  Be6 {[%clk 0:02:53]} 11. Rc1 {[%clk 0:02:33]}  Qc8 {[%clk 0:02:53]} 12. Re1 {[%clk 0:02:28]}  Rd8 {[%clk 0:02:50]} 13. Ne4 {[%clk 0:02:22]}  a5 {[%clk 0:02:44]} 14. a3 {[%clk 0:02:11]}  Bd5 {[%clk 0:02:38]} 15. Qc2 {[%clk 0:02:02]}  Qe6 {[%clk 0:02:32]} 16. Ned2 {[%clk 0:01:57]}  Qf7 {[%clk 0:02:27]} 17. Red1 {[%clk 0:01:37]}  Nd7 {[%clk 0:02:08]} 18. Rb1 {[%clk 0:01:12]}  Nc5 {[%clk 0:02:02]} 19. Bc1 {[%clk 0:01:12]}  Ne6 {[%clk 0:01:54]} 20. e3 {[%clk 0:01:12]}  Nc5 {[%clk 0:01:51]} 21. Nc4 {[%clk 0:00:53]}  e4 {[%clk 0:01:42]} 22. Ne1 {[%clk 0:00:42]}  exd3 {[%clk 0:01:38]} 23. Nxd3 {[%clk 0:00:23]}  Bxg2 {[%clk 0:01:38]} 24. Kxg2 {[%clk 0:00:24]}  Qd5+ {[%clk 0:01:35]} 25. e4 {[%clk 0:00:24]}  Qxe4+ {[%clk 0:01:30]} 26. f3 {[%clk 0:00:24]}  Qg6 {[%clk 0:01:30]} 0-1


[Site "https://www.chess.com"]

[Event "Titled Tuesday Blitz June 14 Late 2022"]
[White "Jocev, Milan"]
[Black "Estrada Nieto, Julian"]
[WhiteFideId "900680"]
[BlackFideId "5101018"]
[WhiteElo "2322"]
[BlackElo "2252"]
[Result "1/2-1/2"]
[Round "11"]
[TimeControl "180+1"]
[Date "2022.06.15"]
[WhiteClock "0:00:22"]
[BlackClock "0:00:04"]

1. Nf3 {[%clk 0:03:00]}  Nf6 {[%clk 0:02:59]} 2. b3 {[%clk 0:03:00]}  d5 {[%clk 0:02:59]} 3. Bb2 {[%clk 0:02:57]}  Bg4 {[%clk 0:02:59]} 4. e3 {[%clk 0:02:58]}  Nbd7 {[%clk 0:02:59]} 5. Be2 {[%clk 0:02:57]}  e6 {[%clk 0:02:59]} 6. O-O {[%clk 0:02:58]}  Bd6 {[%clk 0:02:58]} 7. c4 {[%clk 0:02:58]}  c6 {[%clk 0:02:58]} 8. d4 {[%clk 0:02:56]}  O-O {[%clk 0:02:56]} 9. Nbd2 {[%clk 0:02:56]}  a5 {[%clk 0:02:56]} 10. Ne5 {[%clk 0:02:54]}  Bf5 {[%clk 0:02:50]} 11. g4 {[%clk 0:02:29]}  Bg6 {[%clk 0:02:42]} 12. h4 {[%clk 0:02:27]}  h6 {[%clk 0:02:32]} 13. Nxg6 {[%clk 0:02:25]}  fxg6 {[%clk 0:02:32]} 14. f4 {[%clk 0:02:20]}  Bb4 {[%clk 0:02:24]} 15. g5 {[%clk 0:02:12]}  Bxd2 {[%clk 0:02:17]} 16. Qxd2 {[%clk 0:02:13]}  Ne4 {[%clk 0:02:17]} 17. Qd3 {[%clk 0:02:00]}  Qe7 {[%clk 0:01:52]} 18. Bf3 {[%clk 0:01:57]}  Ng3 {[%clk 0:01:44]} 19. Qxg6 {[%clk 0:01:57]}  Nxf1 {[%clk 0:01:40]} 20. Rxf1 {[%clk 0:01:58]}  hxg5 {[%clk 0:01:33]} 21. hxg5 {[%clk 0:01:49]}  Qf7 {[%clk 0:01:18]} 22. Bh5 {[%clk 0:01:29]}  Qxg6 {[%clk 0:01:16]} 23. Bxg6 {[%clk 0:01:30]}  a4 {[%clk 0:01:16]} 24. e4 {[%clk 0:01:00]}  axb3 {[%clk 0:01:13]} 25. axb3 {[%clk 0:01:00]}  Ra2 {[%clk 0:01:08]} 26. Rf2 {[%clk 0:00:56]}  dxe4 {[%clk 0:00:55]} 27. Bxe4 {[%clk 0:00:55]}  Rxb2 {[%clk 0:00:54]} 28. Rxb2 {[%clk 0:00:52]}  Rxf4 {[%clk 0:00:55]} 29. Re2 {[%clk 0:00:47]}  Rg4+ {[%clk 0:00:54]} 30. Bg2 {[%clk 0:00:47]}  Nf8 {[%clk 0:00:41]} 31. Re4 {[%clk 0:00:34]}  Rxg5 {[%clk 0:00:41]} 32. Kf2 {[%clk 0:00:31]}  Kf7 {[%clk 0:00:38]} 33. Bh3 {[%clk 0:00:24]}  Rg6 {[%clk 0:00:36]} 34. b4 {[%clk 0:00:20]}  Rf6+ {[%clk 0:00:30]} 35. Kg3 {[%clk 0:00:20]}  Ng6 {[%clk 0:00:28]} 36. b5 {[%clk 0:00:20]}  cxb5 {[%clk 0:00:24]} 37. cxb5 {[%clk 0:00:21]}  Ne7 {[%clk 0:00:22]} 38. b6 {[%clk 0:00:19]}  Nd5 {[%clk 0:00:21]} 39. Re5 {[%clk 0:00:20]}  Nxb6 {[%clk 0:00:19]} 40. Rb5 {[%clk 0:00:20]}  Rg6+ {[%clk 0:00:13]} 41. Bg4 {[%clk 0:00:19]}  Nd5 {[%clk 0:00:12]} 42. Rxb7+ {[%clk 0:00:19]}  Kf6 {[%clk 0:00:12]} 43. Kf3 {[%clk 0:00:20]}  Ne3 {[%clk 0:00:07]} 44. Bxe6 {[%clk 0:00:18]}  Kxe6 {[%clk 0:00:06]} 45. Rb6+ {[%clk 0:00:18]}  Kf5 {[%clk 0:00:05]} 46. Rxg6 {[%clk 0:00:19]}  Kxg6 {[%clk 0:00:04]} 47. Kxe3 {[%clk 0:00:20]}  Kf6 {[%clk 0:00:04]} 48. Kf4 {[%clk 0:00:20]}  Ke6 {[%clk 0:00:04]} 49. Kg5 {[%clk 0:00:20]}  Kd5 {[%clk 0:00:03]} 50. Kg6 {[%clk 0:00:21]}  Kxd4 {[%clk 0:00:04]} 51. Kxg7 {[%clk 0:00:22]} 1/2-1/2


[Site "https://www.chess.com"]

[Event "Titled Tuesday Blitz June 14 Late 2022"]
[White "Kim, Sergey"]
[Black "Beulen, Marcel"]
[WhiteFideId "13700570"]
[BlackFideId "1001450"]
[WhiteElo "2587"]
[BlackElo "2410"]
[Result "1-0"]
[Round "11"]
[TimeControl "180+1"]
[Date "2022.06.15"]
[WhiteClock "0:00:29"]
[BlackClock "0:00:02"]

1. d4 {[%clk 0:03:00]}  d5 {[%clk 0:02:59]} 2. c4 {[%clk 0:03:01]}  c6 {[%clk 0:03:00]} 3. Nf3 {[%clk 0:03:00]}  Nf6 {[%clk 0:03:00]} 4. Qc2 {[%clk 0:03:01]}  dxc4 {[%clk 0:02:57]} 5. Qxc4 {[%clk 0:03:00]}  Bg4 {[%clk 0:02:57]} 6. Nbd2 {[%clk 0:03:00]}  Nbd7 {[%clk 0:02:56]} 7. e3 {[%clk 0:03:00]}  e6 {[%clk 0:02:44]} 8. Be2 {[%clk 0:03:00]}  Be7 {[%clk 0:02:39]} 9. O-O {[%clk 0:02:59]}  O-O {[%clk 0:02:39]} 10. Rd1 {[%clk 0:02:59]}  c5 {[%clk 0:02:04]} 11. Nf1 {[%clk 0:02:58]}  Nb6 {[%clk 0:01:52]} 12. Qb5 {[%clk 0:02:51]}  cxd4 {[%clk 0:01:47]} 13. Nxd4 {[%clk 0:02:50]}  Bxe2 {[%clk 0:01:45]} 14. Qxe2 {[%clk 0:02:49]}  Qe8 {[%clk 0:01:30]} 15. Qf3 {[%clk 0:02:43]}  Nbd5 {[%clk 0:01:15]} 16. e4 {[%clk 0:02:41]}  Nb4 {[%clk 0:01:13]} 17. a3 {[%clk 0:02:18]}  Nc6 {[%clk 0:01:13]} 18. Be3 {[%clk 0:02:16]}  Ne5 {[%clk 0:01:04]} 19. Qf4 {[%clk 0:02:09]}  Nc4 {[%clk 0:01:03]} 20. e5 {[%clk 0:02:02]}  Nd5 {[%clk 0:00:59]} 21. Qg3 {[%clk 0:02:01]}  Nxb2 {[%clk 0:00:51]} 22. Bh6 {[%clk 0:01:57]}  g6 {[%clk 0:00:46]} 23. Rdb1 {[%clk 0:01:57]}  Nc4 {[%clk 0:00:41]} 24. Bxf8 {[%clk 0:01:55]}  Bxf8 {[%clk 0:00:32]} 25. Rxb7 {[%clk 0:01:53]}  Bc5 {[%clk 0:00:23]} 26. Nf3 {[%clk 0:01:40]}  Bb6 {[%clk 0:00:21]} 27. Ng5 {[%clk 0:01:36]}  Nc7 {[%clk 0:00:20]} 28. Qf4 {[%clk 0:01:30]}  Na5 {[%clk 0:00:18]} 29. Ne4 {[%clk 0:01:24]}  Qe7 {[%clk 0:00:18]} 30. Qh6 {[%clk 0:01:17]}  Nxb7 {[%clk 0:00:11]} 31. Nf6+ {[%clk 0:01:17]}  Qxf6 {[%clk 0:00:12]} 32. exf6 {[%clk 0:01:17]}  Ne8 {[%clk 0:00:12]} 33. Qg5 {[%clk 0:01:14]}  Bd4 {[%clk 0:00:11]} 34. Rb1 {[%clk 0:01:12]}  Bxf6 {[%clk 0:00:11]} 35. Qf4 {[%clk 0:01:08]}  Nbd6 {[%clk 0:00:11]} 36. h4 {[%clk 0:01:03]}  h5 {[%clk 0:00:11]} 37. Ng3 {[%clk 0:00:58]}  Kg7 {[%clk 0:00:11]} 38. Qf3 {[%clk 0:00:55]}  Rc8 {[%clk 0:00:11]} 39. Qe3 {[%clk 0:00:51]}  Rc2 {[%clk 0:00:09]} 40. Qxa7 {[%clk 0:00:49]}  Nc4 {[%clk 0:00:04]} 41. Ne4 {[%clk 0:00:44]}  Be5 {[%clk 0:00:04]} 42. a4 {[%clk 0:00:37]}  Ned6 {[%clk 0:00:04]} 43. Nxd6 {[%clk 0:00:31]}  Nxd6 {[%clk 0:00:03]} 44. Qe3 {[%clk 0:00:30]}  Bf6 {[%clk 0:00:02]} 45. Qd3 {[%clk 0:00:30]}  Ra2 {[%clk 0:00:02]} 46. Qxd6 {[%clk 0:00:29]} 1-0


[Site "https://www.chess.com"]

[Event "Titled Tuesday Blitz June 14 Late 2022"]
[White "Korchmar, Vasiliy"]
[Black "Deac, Bogdan-Daniel"]
[WhiteFideId "24131750"]
[BlackFideId "1226380"]
[WhiteElo "2370"]
[BlackElo "2648"]
[Result "0-1"]
[Round "11"]
[TimeControl "180+1"]
[Date "2022.06.14"]
[WhiteClock "0:00:03"]
[BlackClock "0:00:03"]

1. e4 {[%clk 0:03:00]}  c5 {[%clk 0:02:59]} 2. Nf3 {[%clk 0:03:01]}  d6 {[%clk 0:03:00]} 3. d4 {[%clk 0:03:01]}  cxd4 {[%clk 0:03:01]} 4. Nxd4 {[%clk 0:03:02]}  Nf6 {[%clk 0:03:01]} 5. Nc3 {[%clk 0:03:02]}  a6 {[%clk 0:03:02]} 6. f3 {[%clk 0:03:02]}  e5 {[%clk 0:03:02]} 7. Nb3 {[%clk 0:03:02]}  Be6 {[%clk 0:03:02]} 8. Be3 {[%clk 0:03:02]}  h5 {[%clk 0:03:03]} 9. Nd5 {[%clk 0:02:59]}  Bxd5 {[%clk 0:03:01]} 10. exd5 {[%clk 0:03:00]}  Nbd7 {[%clk 0:03:02]} 11. c4 {[%clk 0:02:56]}  g6 {[%clk 0:03:01]} 12. Bd3 {[%clk 0:02:49]}  b6 {[%clk 0:02:54]} 13. Qd2 {[%clk 0:02:46]}  Bg7 {[%clk 0:02:54]} 14. O-O {[%clk 0:02:46]}  O-O {[%clk 0:02:53]} 15. f4 {[%clk 0:02:40]}  Ng4 {[%clk 0:02:47]} 16. f5 {[%clk 0:02:32]}  e4 {[%clk 0:02:30]} 17. Be2 {[%clk 0:02:24]}  Nde5 {[%clk 0:02:05]} 18. Nd4 {[%clk 0:02:08]}  Qh4 {[%clk 0:01:37]} 19. h3 {[%clk 0:01:56]}  Nxe3 {[%clk 0:01:36]} 20. Qxe3 {[%clk 0:01:57]}  Rac8 {[%clk 0:01:25]} 21. fxg6 {[%clk 0:01:48]}  fxg6 {[%clk 0:01:25]} 22. Ne6 {[%clk 0:01:48]}  Rxf1+ {[%clk 0:01:21]} 23. Rxf1 {[%clk 0:01:48]}  Nd7 {[%clk 0:00:25]} 24. b3 {[%clk 0:01:05]}  Be5 {[%clk 0:00:25]} 25. Bd1 {[%clk 0:00:52]}  Nc5 {[%clk 0:00:24]} 26. Bc2 {[%clk 0:00:44]}  Re8 {[%clk 0:00:23]} 27. Kh1 {[%clk 0:00:35]}  Nxe6 {[%clk 0:00:22]} 28. dxe6 {[%clk 0:00:36]}  Rxe6 {[%clk 0:00:22]} 29. Bxe4 {[%clk 0:00:36]}  Kg7 {[%clk 0:00:11]} 30. Bd5 {[%clk 0:00:37]}  Rf6 {[%clk 0:00:09]} 31. Rxf6 {[%clk 0:00:31]}  Qxf6 {[%clk 0:00:10]} 32. Qf3 {[%clk 0:00:15]}  Qe7 {[%clk 0:00:07]} 33. Qf2 {[%clk 0:00:07]}  b5 {[%clk 0:00:06]} 34. cxb5 {[%clk 0:00:06]}  axb5 {[%clk 0:00:07]} 35. a4 {[%clk 0:00:07]}  bxa4 {[%clk 0:00:06]} 36. bxa4 {[%clk 0:00:08]}  Qc7 {[%clk 0:00:06]} 37. Qf1 {[%clk 0:00:04]}  h4 {[%clk 0:00:04]} 38. Be4 {[%clk 0:00:03]}  Qc3 {[%clk 0:00:03]} 0-1


[Site "https://www.chess.com"]